fUST/lending_fUST_20250720
["ID","MTS","AMOUNT","RATE_DAILY","PERIOD"]
[373369580,1752970240150,-3000.0,0.0002124,2]
[373369581,1752970240161,-3000.0,0.0002125,2]
[373369582,1752970240172,-3155.7139,0.0002126,2]
[373369583,1752970240182,-500.0,0.00021286,2]
[373369584,1752970240194,-500.0,0.00021286,2]
[373369585,1752970240205,-500.0,0.00021286,2]
[373369586,1752970240216,-500.0,0.00021286,2]
[373369587,1752970240227,-3679.95675916,0.00021314,5]
[373369588,1752970240238,-604.31728,0.00021318,2]
[373369589,1752970240249,-968.0,0.00021341,2]
[373369590,1752970240261,-460.0,0.00021342,2]
[373369591,1752970240272,-837.38,0.00021342,2]
[373369592,1752970240284,-1199.84,0.00021342,2]
[373369593,1752970240297,-465.0,0.00021342,2]
[373369594,1752970240309,-460.0,0.00021343,2]
[373369595,1752970240320,-460.0,0.00021343,2]
[373369596,1752970240332,-660.77,0.00021343,2]
[373369597,1752970240344,-460.0,0.00021343,2]
[373369598,1752970240355,-403.69,0.00021344,2]
[373369599,1752970240367,-1417.81,0.00021345,2]
[373369600,1752970240378,-598.11,0.00021346,2]
[373369601,1752970240389,-478.3,0.00021346,2]
[373369602,1752970240400,-460.0,0.00021346,2]
[373369603,1752970240411,-460.0,0.00021347,2]
[373369604,1752970240421,-460.0,0.00021347,2]
[373369605,1752970240432,-150.0,0.0002143,2]
[373369606,1752970240443,-150.0,0.0002143,2]
[373369607,1752970240454,-150.135,0.00021433,2]
[373369608,1752970240465,-150.0,0.00021433,2]
[373369609,1752970240477,-696.898,0.00021433,2]
[373369610,1752970240490,-2156.0,0.00021433,2]
[373369611,1752970240502,-510.83520305,0.00021554,2]
[373369612,1752970240512,-3679.95675916,0.00021555,5]
[373369613,1752970240524,-1487.5,0.000216,2]
[373369614,1752970240537,-500.0,0.00021612,2]
[373369615,1752970240547,-460.0,0.00021616,2]
[373369616,1752970240559,-837.38,0.00021616,2]
[373369617,1752970240572,-1199.84,0.00021616,2]
[373369618,1752970240584,-465.0,0.00021616,2]
[373369619,1752970240595,-460.0,0.00021617,2]
[373369620,1752970240605,-460.0,0.00021617,2]
[373369621,1752970240616,-660.77,0.00021617,2]
[373369622,1752970240627,-460.0,0.00021617,2]
[373369623,1752970240638,-1417.81,0.00021619,2]
[373369624,1752970240649,-598.11,0.0002162,2]
[373369625,1752970240660,-478.3,0.0002162,2]
[373369626,1752970240671,-460.0,0.0002162,2]
[373369627,1752970240682,-403.71216627,0.00021621,2]
[373369628,1752970240694,-460.0,0.00021621,2]
[373369629,1752970240704,-3679.95675916,0.00021797,6]
[373369630,1752970240714,-207.4,0.00021826,2]
[373369631,1752970240723,-151.0,0.00021826,2]
[373369632,1752970240732,-151.0,0.00021826,2]
[373369633,1752970240742,-151.0,0.00021826,2]
[373369634,1752970240752,-151.0,0.00021826,2]
[373369635,1752970240761,-420.38042913,0.00021834,2]
[373369636,1752970240770,-1000.0,0.00021834,2]
[373369637,1752970240779,-1000.0,0.00021834,2]
[373369638,1752970240789,-1000.0,0.00021834,2]
[373369639,1752970240798,-460.0,0.0002189,2]
[373369640,1752970240808,-837.38,0.0002189,2]
[373369641,1752970240817,-1199.84,0.0002189,2]
[373369642,1752970240827,-465.0,0.0002189,2]
[373369643,1752970240838,-458.27245149,0.00021891,2]
[373369644,1752970240848,-460.0,0.00021891,2]
[373369645,1752970240857,-660.77,0.00021891,2]
[373369646,1752970240867,-460.0,0.00021891,2]
[373369647,1752970240876,-1417.81,0.00021893,2]
[373369648,1752970240885,-598.11,0.00021894,2]
[373369649,1752970240895,-478.3,0.00021894,2]
[373369650,1752970240904,-460.0,0.00021894,2]
[373369651,1752970240915,-460.0,0.00021895,2]
[373369652,1752970240924,-500.0,0.00021917,2]
[373369653,1752970241101,-500.0,0.00021917,2]
[373369654,1752970241111,-500.0,0.00021917,2]
[373369655,1752970241120,-500.0,0.00021917,2]
[373369656,1752970241130,-500.0,0.00021917,2]
[373369657,1752970241140,-500.0,0.00021917,2]
[373369658,1752970241149,-500.0,0.00021917,2]
[373369659,1752970241158,-500.0,0.00021917,2]
[373369660,1752970241167,-500.0,0.00021917,2]
[373369661,1752970241177,-500.0,0.00021917,2]
[373369662,1752970241186,-500.0,0.00021917,2]
[373369663,1752970241197,-500.0,0.00021917,2]
[373369664,1752970241206,-500.0,0.00021917,2]
[373369665,1752970241216,-500.0,0.00021917,2]
[373369666,1752970241225,-500.0,0.00021917,2]
[373369667,1752970241234,-500.0,0.00021917,2]
[373369668,1752970241243,-500.0,0.00021917,2]
[373369669,1752970241253,-500.0,0.00021917,2]
[373369670,1752970241262,-500.0,0.00021917,2]
[373369671,1752970241271,-500.0,0.00021917,2]
[373369672,1752970241280,-500.0,0.00021917,2]
[373369673,1752970241289,-188.53,0.00021917,2]
[373369674,1752970241299,-2000.0,0.00021988,4]
[373369675,1752970241308,-168.0,0.00021998,2]
[373369676,1752970241318,-164.672088,0.00022,14]
[373369677,1752970241327,-161.0,0.00022,2]
[373369678,1752970241336,-3679.95675916,0.00022038,6]
[373369679,1752970241345,-220.3462512,0.00022074,2]
[373369680,1752970241354,-2000.0,0.00022127,4]
[373369681,1752970241364,-460.0,0.00022164,2]
[373369682,1752970241372,-837.38,0.00022164,2]
[373369683,1752970241381,-1199.84,0.00022164,2]
[373369684,1752970241390,-465.0,0.00022164,2]
[373369685,1752970241401,-518.56083965,0.00022165,2]
[373369686,1752970241410,-460.0,0.00022165,2]
[373369687,1752970241420,-660.77,0.00022165,2]
[373369688,1752970241430,-460.0,0.00022165,2]
[373369689,1752970241440,-371.89893966,0.00022166,2]
[373369690,1752970241450,-1417.81,0.00022167,2]
[373369691,1752970241461,-598.11,0.00022168,2]
[373369692,1752970241470,-478.3,0.00022168,2]
[373369693,1752970241479,-460.0,0.00022168,2]
[373369694,1752970241488,-460.0,0.00022169,2]
[373369695,1752970241499,-3679.95675916,0.00022279,6]
[373369696,1752970241511,-1311.52945269,0.00022382,2]
[373369697,1752970241520,-1500.0,0.00022382,2]
[373369698,1752970241529,-1500.0,0.00022382,2]
[373369699,1752970241539,-592.66199092,0.00022438,2]
[373369700,1752970241551,-837.38,0.00022438,2]
[373369701,1752970241560,-1199.84,0.00022438,2]
[373369702,1752970241569,-465.0,0.00022438,2]
[373369703,1752970241580,-460.0,0.00022439,2]
[373369704,1752970241589,-660.77,0.00022439,2]
[373369705,1752970241599,-161.05102492,0.00022439,2]
[373369706,1752970241608,-1417.81,0.00022441,2]
[373369707,1752970241617,-598.11,0.00022442,2]
[373369708,1752970241626,-478.3,0.00022442,2]
[373369709,1752970241635,-460.0,0.00022442,2]
[373369710,1752970241644,-460.0,0.00022443,2]
[373369711,1752970241653,-164.672088,0.00022485,2]
[373369712,1752970241662,-3000.0,0.00022489,4]
[373369713,1752970241671,-3679.95675916,0.00022521,7]
[373369714,1752970241681,-3000.0,0.00022648,4]
[373369715,1752970241691,-164.672088,0.00022692,14]
[373369716,1752970241701,-500.0,0.00022708,2]
[373369717,1752970241711,-837.38,0.00022712,2]
[373369718,1752970241720,-1199.84,0.00022712,2]
[373369719,1752970241729,-465.0,0.00022712,2]
[373369720,1752970241739,-460.0,0.00022713,2]
[373369721,1752970241749,-660.77,0.00022713,2]
[373369722,1752970241759,-1417.81,0.00022715,2]
[373369723,1752970241769,-598.11,0.00022716,2]
[373369724,1752970241778,-478.3,0.00022716,2]
[373369725,1752970241787,-460.0,0.00022716,2]
[373369726,1752970241798,-460.0,0.00022717,2]
[373369727,1752970241807,-3000.0,0.00022726,4]
[373369728,1752970241817,-3000.0,0.00022762,4]
[373369729,1752970241827,-3679.95675916,0.00022762,7]
[373369730,1752970241836,-168.0,0.00022871,2]
[373369731,1752970241845,-1153.917266,0.00022877,2]
[373369732,1752970241855,-153.0,0.00022877,2]
[373369733,1752970241863,-356.1016652,0.00022877,2]
[373369734,1752970241872,-500.0,0.00022898,8]
[373369735,1752970241882,-2000.0,0.0002293,2]
[373369736,1752970241892,-2000.0,0.0002293,2]
[373369737,1752970241902,-837.38,0.00022986,2]
[373369738,1752970241911,-1199.84,0.00022986,2]
[373369739,1752970241921,-465.0,0.00022986,2]
[373369740,1752970241930,-858.4824182,0.00022986,2]
[373369741,1752970241939,-460.0,0.00022987,2]
[373369742,1752970241949,-660.77,0.00022987,2]
[373369743,1752970241958,-1417.81,0.00022989,2]
[373369744,1752970241968,-598.11,0.0002299,2]
[373369745,1752970241978,-478.3,0.0002299,2]
[373369746,1752970241987,-460.0,0.0002299,2]
[373369747,1752970241997,-460.0,0.00022991,2]
[373369748,1752970242006,-525.83049785,0.00023,3]
[373369749,1752970242015,-160.0,0.00023,3]
[373369750,1752970242025,-839.454303,0.00023,3]
[373369751,1752970242035,-3679.95675916,0.00023003,8]
[373369752,1752970242046,-161.0,0.00023014,7]
[373369753,1752970242055,-545.173175,0.00023029,8]
[373369754,1752970242064,-160.0,0.00023038,3]
[373369755,1752970242074,-304.0977279,0.00023081,2]
[373369756,1752970242083,-168.0,0.00023156,2]
[373369757,1752970242093,-215.0738,0.00023195,2]
[373369758,1752970242102,-168.0,0.00023245,2]
[373369759,1752970242111,-3679.95675916,0.00023245,8]
[373369760,1752970242120,-837.38,0.0002326,2]
[373369761,1752970242130,-1199.84,0.0002326,2]
[373369762,1752970242139,-465.0,0.0002326,2]
[373369763,1752970242148,-460.0,0.00023261,2]
[373369764,1752970242157,-660.77,0.00023261,2]
[373369765,1752970242166,-1417.81,0.00023263,2]
[373369766,1752970242176,-598.11,0.00023264,2]
[373369767,1752970242186,-478.3,0.00023264,2]
[373369768,1752970242195,-271.30860513,0.00023264,2]
[373369769,1752970242204,-178.0,0.00023265,2]
[373369770,1752970242214,-460.0,0.00023265,2]
[373369771,1752970242223,-164.672088,0.000233,8]
[373369772,1752970242233,-178.0,0.0002332,2]
[373369773,1752970242242,-250.0,0.00023362,2]
[373369774,1752970242252,-440.24137134,0.00023366,2]
[373369775,1752970242261,-164.672088,0.00023384,14]
[373369776,1752970242271,-2142.59993248,0.000234,3]
[373369777,1752970242281,-150.0,0.000234,5]
[373369778,1752970242290,-215.67360783,0.000234,3]
[373369779,1752970242300,-214.52603969,0.000234,3]
[373369780,1752970242309,-164.672088,0.00023468,8]
[373369781,1752970242319,-151.0,0.00023472,2]
[373369782,1752970242328,-500.0,0.00023472,2]
[373369783,1752970242337,-151.0,0.00023472,2]
[373369784,1752970242347,-151.0,0.00023472,2]
[373369785,1752970242357,-151.0,0.00023472,2]
[373369786,1752970242366,-245.0,0.00023472,2]
[373369788,1752970242375,-151.0,0.00023472,2]
[373369789,1752970242384,-151.0,0.00023472,2]
[373369790,1752970242393,-151.0,0.00023472,2]
[373369791,1752970242403,-151.0,0.00023472,2]
[373369792,1752970242413,-151.0,0.00023472,2]
[373369793,1752970242422,-500.0,0.00023472,2]
[373369794,1752970242431,-166.62220588,0.00023477,2]
[373369795,1752970242441,-2500.0,0.00023477,2]
[373369796,1752970242451,-3679.95675916,0.00023486,9]
[373369797,1752970242461,-245.0,0.0002349,7]
[373369798,1752970242470,-83315.61038541,0.000235,4]
[373369799,1752970242480,-1000.0,0.000235,2]
[373369800,1752970242489,-9691.33,0.000235,7]
[373369801,1752970242499,-64068.01,0.000235,2]
[373369802,1752970242512,-123445.33107303,0.000235,4]
[373369803,1752970242522,-4445.68,0.000235,7]
[373369804,1752970242531,-1415.92,0.000235,7]
[373369806,1752970242541,-151.0,0.000235,7]
[373369808,1752970242551,-500.0,0.000235,2]
[373369810,1752970242560,-151.0,0.000235,7]
[373369812,1752970242569,-152.0,0.000235,3]
[373369813,1752970242578,-500.0,0.000235,2]
[373369814,1752970242588,-500.0,0.000235,2]
[373369815,1752970242598,-500.0,0.000235,2]
[373369816,1752970242608,-500.0,0.000235,2]
[373369817,1752970242617,-500.0,0.000235,2]
[373369818,1752970242627,-164.672088,0.000235,4]
[373369819,1752970242636,-1000.0,0.000235,2]
[373369821,1752970242646,-500.0,0.000235,9]
[373369823,1752970242656,-155.0,0.000235,2]
[373369825,1752970242665,-206.0,0.0002351,2]
[373369827,1752970242675,-837.38,0.00023534,2]
[373369829,1752970242685,-1199.84,0.00023534,2]
[373369830,1752970242695,-465.0,0.00023534,2]
[373369832,1752970242704,-460.0,0.00023535,2]
[373369833,1752970242714,-660.77,0.00023535,2]
[373369835,1752970242723,-1417.81,0.00023537,2]
[373369837,1752970242733,-598.11,0.00023538,2]
[373369839,1752970242743,-478.3,0.00023538,2]
[373369841,1752970242753,-460.0,0.00023539,2]
[373369843,1752970242762,-1881.61,0.00023581,3]
[373369845,1752970242772,-168.0,0.00023611,2]
[373369847,1752970242781,-2200.0,0.00023629,2]
[373369849,1752970242791,-164.672088,0.00023636,8]
[373369852,1752970242801,-153.0,0.00023671,2]
[373369854,1752970242811,-153.0,0.00023671,2]
[373369856,1752970242820,-1881.61,0.00023681,7]
[373369858,1752970242830,-168.0,0.00023692,2]
[373369860,1752970242839,-164.672088,0.00023693,9]
[373369862,1752970242848,-858.6313577,0.00023694,2]
[373369864,1752970242858,-3679.95675916,0.00023728,9]
[373369866,1752970242867,-164.672088,0.00023732,2]
[373369868,1752970242877,-191.03591,0.00023744,2]
[373369870,1752970242886,-500.0,0.00023746,2]
[373369872,1752970242895,-151.0,0.00023746,2]
[373369874,1752970242905,-500.0,0.00023746,2]
[373369876,1752970242914,-164.672088,0.00023757,9]
[373369878,1752970242924,-168.0,0.00023777,2]
[373369880,1752970242933,-16.78145898,0.00023781,4]
[373369882,1752970242950,-1864.82854102,0.00023781,4]
[373369884,1752970242959,-164.672088,0.00023787,4]
[373369885,1752970242968,-151.0,0.00023788,7]
[373369886,1752970242978,-164.672088,0.00023805,8]
[373369887,1752970242987,-837.38,0.00023808,2]
[373369888,1752970242996,-1199.84,0.00023808,2]
[373369889,1752970243005,-465.0,0.00023808,2]
[373369890,1752970243015,-460.0,0.00023809,2]
[373369891,1752970243024,-660.77,0.00023809,2]
[373369892,1752970243034,-277.23728296,0.00023811,2]
[373369893,1752970243087,-230.94145789,0.00023,3]
[373369894,1752970243097,-297.51915172,0.00023265,2]
[373369895,1752970243107,-1140.57271704,0.00023811,2]
[373369896,1752970243116,-598.11,0.00023812,2]
[373369897,1752970243126,-478.3,0.00023812,2]
[373369898,1752970243135,-460.0,0.00023813,2]
[373369899,1752970243145,-164.672088,0.00023822,9]
[373369900,1752970243154,-151.0,0.00023837,7]
[373369901,1752970243164,-151.0,0.00023837,7]
[373369902,1752970243174,-206.0,0.0002386,2]
[373369903,1752970243183,-1465.92215913,0.0002388,2]
[373369906,1752970243202,-460.0,0.0001778,2]
[373369908,1752970243211,-386.32392378,0.0002388,2]
[373369910,1752970243222,-289.54641168,0.0002388,2]
[373370233,1752970246269,-460.0,0.00021276,10]
[373370235,1752970246280,-4710.74,0.00021276,10]
[373370237,1752970246290,-407.0,0.00021644,2]
[373370239,1752970246299,-297.51915172,0.00023535,2]
[373370242,1752970246309,-297.51915172,0.00023812,2]
[373370244,1752970246319,-449.33658552,0.0002388,2]
[373370246,1752970246328,-6429.30832004,0.0002388,7]
[373370248,1752970246339,-3651.88656089,0.0002388,7]
[373370250,1752970246350,-702.07343911,0.0002388,7]
[373370252,1752970246361,-7591.29195975,0.0002388,7]
[373371878,1752970371047,169.261531,0.00013699,2]
[373371922,1752971432197,-510.9,0.00017779,2]
[373371923,1752971432210,-136.1,0.00017779,2]
[373371924,1752971432219,-300.0,0.00017779,2]
[373371925,1752971432228,-813.25049649,0.00017779,2]
[373371926,1752971432262,-386.74950351,0.00017779,2]
[373371927,1752971432272,-460.0,0.0001778,2]
[373371928,1752971432281,-460.0,0.0001778,2]
[373371929,1752971432291,-460.0,0.0001778,2]
[373371930,1752971432300,-593.38,0.0001778,2]
[373371931,1752971432309,-112.05259362,0.0001778,2]
[373371932,1752971432337,-347.94740638,0.0001778,2]
[373371933,1752971432347,-460.0,0.00017781,2]
[373371934,1752971432357,-460.0,0.00017781,2]
[373371935,1752971432366,-460.0,0.00017781,2]
[373371936,1752971432376,-460.0,0.00017781,2]
[373371937,1752971432387,-460.0,0.00017781,2]
[373371938,1752971432397,-460.0,0.00017781,2]
[373371939,1752971432416,-460.0,0.00017781,2]
[373371940,1752971432427,-460.0,0.00017781,2]
[373371941,1752971432437,-491.26,0.00017781,2]
[373371942,1752971432447,-460.0,0.00017781,2]
[373371943,1752971432457,-460.0,0.00017781,2]
[373371944,1752971432467,-363.83218036,0.00017956,2]
[373371945,1752971432477,-460.0,0.00018053,2]
[373371946,1752971432487,-460.0,0.00018053,2]
[373371947,1752971432497,-364.88699472,0.00018053,2]
[373371956,1752971438084,-95.11300528,0.00018053,2]
[373371957,1752971438096,-460.0,0.00018053,2]
[373371958,1752971438106,-479.16,0.00018053,2]
[373371959,1752971438115,-460.0,0.00018053,2]
[373371960,1752971438125,-460.0,0.00018053,2]
[373371961,1752971438134,-502.45,0.00018053,2]
[373371962,1752971438144,-460.0,0.00018053,2]
[373371963,1752971438153,-460.0,0.00018053,2]
[373371964,1752971438163,-210.43770997,0.00018053,2]
[373371965,1752971438246,-249.56229003,0.00018053,2]
[373371966,1752971438257,-460.0,0.00018053,2]
[373371967,1752971438268,-460.0,0.00018053,2]
[373371968,1752971438278,-460.0,0.00018054,2]
[373371969,1752971438288,-460.0,0.00018054,2]
[373371970,1752971438299,-233.72229668,0.00018054,2]
[373371981,1752971440556,-460.0,0.00018053,2]
[373371982,1752971440566,-226.27770332,0.00018054,2]
[373371983,1752971440575,-460.0,0.00018054,2]
[373371984,1752971440586,-460.0,0.00018054,2]
[373371985,1752971440595,-460.0,0.00018054,2]
[373371986,1752971440605,-460.0,0.00018054,2]
[373371987,1752971440614,-460.0,0.00018054,2]
[373371988,1752971440623,-460.0,0.00018054,2]
[373371989,1752971440633,-562.19,0.00018054,2]
[373371990,1752971440643,-243.33634248,0.00018054,2]
[373371991,1752971440653,-460.0,0.00018054,2]
[373371992,1752971440663,-460.0,0.00018054,2]
[373371993,1752971440673,-460.0,0.00018054,2]
[373371994,1752971440682,-460.0,0.00018054,2]
[373371995,1752971440692,-475.18521446,0.00018054,2]
[373371996,1752971440701,-460.0,0.00018054,2]
[373371997,1752971440711,-460.0,0.00018054,2]
[373371998,1752971440720,-460.0,0.00018054,2]
[373371999,1752971440731,-407.54,0.00018054,2]
[373372000,1752971440740,-460.0,0.00018054,2]
[373372001,1752971440751,-279.80727738,0.00018054,2]
[373372002,1752971440761,-593.38,0.00018054,2]
[373372003,1752971440770,-573.51,0.00018054,2]
[373372004,1752971440779,-524.76,0.00018054,2]
[373372005,1752971440789,-460.0,0.00018054,2]
[373372006,1752971440799,-573.13,0.00018054,2]
[373372007,1752971440808,-498.33,0.00018054,2]
[373372008,1752971440818,-460.0,0.00018054,2]
[373372009,1752971440831,-460.0,0.00018054,2]
[373372010,1752971440840,-460.0,0.00018054,2]
[373372011,1752971440850,-460.0,0.00018054,2]
[373372012,1752971440859,-460.0,0.00018054,2]
[373372013,1752971440869,-459.62,0.00018054,2]
[373372014,1752971440878,-550.6,0.00018054,2]
[373372015,1752971440887,-460.0,0.00018055,2]
[373372016,1752971440898,-460.0,0.00018055,2]
[373372017,1752971440907,-460.0,0.00018055,2]
[373372018,1752971440917,-401.5187199,0.00018327,2]
[373372019,1752971440927,-460.0,0.00018327,2]
[373372020,1752971440936,-460.0,0.00018327,2]
[373372021,1752971440946,-460.0,0.00018327,2]
[373372022,1752971440955,-460.0,0.00018327,2]
[373372023,1752971440965,-460.0,0.00018327,2]
[373372024,1752971440974,-460.0,0.00018327,2]
[373372025,1752971440984,-460.0,0.00018327,2]
[373372026,1752971440993,-502.45,0.00018327,2]
[373372027,1752971441002,-460.0,0.00018327,2]
[373372028,1752971441015,-460.0,0.00018327,2]
[373372029,1752971441025,-460.0,0.00018327,2]
[373372030,1752971441035,-460.0,0.00018327,2]
[373372031,1752971441045,-460.0,0.00018327,2]
[373372032,1752971441054,-460.0,0.00018328,2]
[373372033,1752971441064,-460.0,0.00018328,2]
[373372034,1752971441073,-460.0,0.00018328,2]
[373372035,1752971441083,-593.38,0.00018328,2]
[373372036,1752971441092,-460.0,0.00018328,2]
[373372037,1752971441102,-460.0,0.00018329,2]
[373372038,1752971441112,-551.2,0.00018329,2]
[373372039,1752971441121,-460.0,0.00018329,2]
[373372040,1752971441130,-460.0,0.00018601,2]
[373372041,1752971441140,-599.29,0.00018601,2]
[373372042,1752971441150,-460.0,0.00018601,2]
[373372043,1752971441159,-460.0,0.00018601,2]
[373372044,1752971441168,-161.05102492,0.00018601,2]
[373372045,1752971441177,-502.45,0.00018601,2]
[373372046,1752971441186,-460.0,0.00018601,2]
[373372047,1752971441195,-460.0,0.00018601,2]
[373372048,1752971441205,-179.04,0.00018601,2]
[373372049,1752971441214,-460.0,0.00018601,2]
[373372050,1752971441223,-460.0,0.00018602,2]
[373372051,1752971441232,-460.0,0.00018602,2]
[373372052,1752971441241,-593.38,0.00018602,2]
[373372053,1752971441250,-460.0,0.00018602,2]
[373372054,1752971441259,-460.0,0.00018603,2]
[373372055,1752971441268,-460.0,0.00018603,2]
[373372056,1752971441278,-460.0,0.00018875,2]
[373372057,1752971441287,-460.0,0.00018875,2]
[373372058,1752971441296,-460.0,0.00018875,2]
[373372059,1752971441305,-502.45,0.00018875,2]
[373372060,1752971441314,-460.0,0.00018875,2]
[373372061,1752971441323,-460.0,0.00018875,2]
[373372062,1752971441332,-318.49204299,0.00018875,2]
[373372063,1752971441341,-460.0,0.00018876,2]
[373372064,1752971441350,-247.10266128,0.00018876,2]
[373372065,1752971441359,-593.38,0.00018876,2]
[373372066,1752971441368,-460.0,0.00018876,2]
[373372067,1752971441378,-271.30860513,0.00018877,2]
[373372068,1752971441387,-460.0,0.00018877,2]
[373372069,1752971441396,-540.48189604,0.000189,2]
[373372070,1752971441405,-2120.62317009,0.000189,2]
[373372071,1752971441415,-363.8321803,0.00018995,2]
[373372072,1752971441424,-2120.62316983,0.00019141,2]
[373372073,1752971441432,-460.0,0.00019149,2]
[373372074,1752971441443,-460.0,0.00019149,2]
[373372075,1752971441452,-460.0,0.00019149,2]
[373372076,1752971441462,-502.45,0.00019149,2]
[373372077,1752971441472,-460.0,0.00019149,2]
[373372078,1752971441482,-212.78245149,0.00019149,2]
[373372079,1752971441491,-460.0,0.0001915,2]
[373372080,1752971441501,-593.38,0.0001915,2]
[373372081,1752971441512,-460.0,0.0001915,2]
[373372082,1752971441527,-460.0,0.00019151,2]
[373372083,1752971441536,-460.0,0.00019153,2]
[373372084,1752971441546,-460.86018815,0.00019153,2]
[373372085,1752971441556,-460.0,0.00019153,2]
[373372086,1752971441565,-460.0,0.00019153,2]
[373372087,1752971441574,-191.03591,0.00019178,2]
[373372088,1752971441583,-261.90592987,0.00019306,2]
[373372218,1752971446283,-460.0,0.00017781,2]
[373372219,1752971446296,-27.101121,0.00018053,2]
[373372222,1752971446308,-432.898879,0.00018053,2]
[373372224,1752971446317,-460.0,0.00018055,2]
[373372225,1752971446326,-247.10266128,0.00018327,2]
[373372310,1752971499014,160.798454,0.00013699,2]
[373372312,1752971511983,-274.00722595,0.00017781,2]
[373372313,1752971514409,-181.99,0.00017781,2]
[373372314,1752971516903,-4.00277405,0.00017781,2]
[373372315,1752971521100,-228.80722595,0.0001778,2]
[373372316,1752971523131,-152.0,0.0001778,2]
[373372317,1752971524672,-79.19277405,0.0001778,2]
[373372318,1752971524697,-83.34198493,0.0001778,2]
[373372319,1752971526424,-178.89142325,0.0001778,2]
[373372320,1752971529964,-151.98935022,0.0001778,2]
[373372321,1752972021952,-183.24980077,0.0001778,2]
[373372322,1752972023468,-157.65125675,0.0001778,2]
[373372323,1752972024958,-119.09894248,0.0001778,2]
[373372324,1752972024985,-86.77427985,0.0001778,2]
[373372325,1752972029831,-219.19834183,0.0001778,2]
[373372376,1752972632458,-272.87413526,0.000179,2]
[373372377,1752972632468,-21.22586474,0.000179,2]
[373372394,1752972639255,-3449.1658782,0.000179,2]
[373372395,1752972639265,-300.0,0.00017999,2]
[373372396,1752972639275,-766.0,0.00017999,2]
[373372397,1752972639285,-2000.0,0.00018,2]
[373372398,1752972639295,-36344.0,0.00018,2]
[373372399,1752972639304,-2000.0,0.00018,3]
[373372400,1752972639314,-460.0,0.00018053,2]
[373372401,1752972639324,-551.44649509,0.00018053,2]
[373372402,1752972639334,-460.0,0.00018053,2]
[373372403,1752972639345,-460.0,0.00018053,2]
[373372404,1752972639356,-460.0,0.00018053,2]
[373372405,1752972639365,-460.0,0.00018053,2]
[373372406,1752972639374,-460.0,0.00018053,2]
[373372407,1752972639384,-460.0,0.00018053,2]
[373372408,1752972639393,-460.0,0.00018053,2]
[373372409,1752972639403,-460.0,0.00018053,2]
[373372410,1752972639413,-460.0,0.00018053,2]
[373372411,1752972639424,-460.0,0.00018053,2]
[373372412,1752972639436,-460.0,0.00018053,2]
[373372413,1752972639445,-460.0,0.00018053,2]
[373372414,1752972639455,-460.0,0.00018053,2]
[373372415,1752972639465,-460.0,0.00018053,2]
[373372416,1752972639475,-460.0,0.00018053,2]
[373372417,1752972639485,-460.0,0.00018053,2]
[373372418,1752972639495,-1116.49,0.00018053,2]
[373372419,1752972639505,-460.0,0.00018053,2]
[373372420,1752972639517,-460.0,0.00018054,2]
[373372421,1752972639529,-3470.39174293,0.00018176,2]